[Event "EU-ch 12th"]
[Site "Aix les Bains"]
[Date "2011.03.23"]
[Round "2"]
[White "Zarkua, Davit"]
[Black "Nyback, Tomi"]
[Result "0-1"]
[ECO "E11"]
[WhiteElo "2397"]
[BlackElo "2656"]
[Annotator "Marchand,A/Primel,D"]
[PlyCount "126"]
[EventDate "2011.03.22"]
[EventType "swiss"]
[EventRounds "11"]
[EventCountry "FRA"]
[SourceTitle "CBM 142 Extra"]
[Source "ChessBase"]
[SourceDate "2011.06.27"]
[SourceVersion "1"]
[SourceVersionDate "2011.06.27"]
[SourceQuality "1"]
[TimeControl "40/5400+30:1800+30"]

1. d4 d5 2. c4 e6 3. Nf3 Nf6 4. g3 Bb4+ 5. Bd2 Be7 (5... Bd6) (5... a5) 6. Bg2
O-O 7. Qc2 (7. O-O c6 8. Qc2 (8. Bf4)) 7... c6 8. O-O b6 (8... Nbd7 9. Rd1 b6 (
9... b5)) 9. Bf4 (9. Rd1 Bb7 10. Nc3 Nbd7 (10... dxc4 11. Ne5 Qxd4 12. Bf4 Qc5
13. Na4 Qb4 14. a3 Qb3 15. Qxc4 Qxc4 16. Nxc4 Ba6 (16... b5 $2 17. Na5) 17. Ne5
$14) 11. Bf4 Nh5 12. Bc1 (12. Bd2 f5 13. cxd5 exd5 14. Bh3 g6 15. Bh6 Ng7 16.
e3)) 9... Ba6 10. Nbd2 Nbd7 11. Rfc1 ({RR} 11. Rfe1 Nh5 12. Ne5 Nxe5 13. Bxe5
f6 14. Bf4 Nxf4 15. gxf4 Bb4 16. Red1 Qd6 17. Nf1 dxc4 18. a3 Ba5 19. f5 Kh8
20. Ne3 b5 21. Qe4 Bb7 22. Qxe6 Qc7 23. Qe4 Rae8 24. Qg4 Bb6 25. Nf1 Bc8 {
Wang Hao (2724)-Aronian,L (2783)/Shanghai 2010/CBM 138/0-1 (35)}) (11. b3 Nh5)
11... Nh5 (11... Rc8) 12. Be3 Bb7 $146 (12... Nhf6 {[%emt 0:33:30] Postny,E 
(2595)-Movsesian,S (2723)/ CRO-chT1A 19th (2)/1/2-1/2}) 13. Ne1 f5 14. Nd3 {
[%csl Ge5][%cal Gd3e5,Gd3f4]} Bd6 15. cxd5 exd5 16. f4 $5 Qe8 $132 {[%csl Re2,
Re3]} 17. Ne5 Nxe5 18. dxe5 Be7 19. Bf2 g6 (19... g5) 20. Nf3 Ng7 21. a4 c5 22.
a5 (22. b4 $1 {[%cal Gc2c7]}) 22... Ne6 $132 23. Qb3 {[%csl Rb6][%cal Gb3g8]} (
23. a6 Bc6) 23... b5 24. a6 Bc6 25. Nd4 Nc7 26. Nxc6 Qxc6 27. Qa3 Ne6 28. Rd1
Rfd8 29. Qf3 Nc7 30. g4 Qe6 31. gxf5 gxf5 32. Qh5 Kh8 33. Ra3 $1 {[%cal Ga3h3]}
Rg8 34. Rh3 Rg7 35. Qh6 Rd8 (35... Rag8 36. Bg3) 36. e3 d4 37. Qxe6 Nxe6 38.
Rh6 (38. Kf1) 38... Rg6 39. Rxg6 hxg6 40. exd4 cxd4 41. Bf1 (41. Kf1 Bc5 (41...
Nxf4 $2 42. Rxd4)) 41... Bc5 42. Bxb5 Nxf4 43. Kf1 Nh3 44. e6 Nxf2 $1 45. Kxf2
Rb8 {[%csl Rb2,Rb5]} 46. b4 $1 {Espérant sauver la nulle en transposant dans
une finale de B de couleurs opposées} Bxb4 47. Rb1 Bd6 48. Bd3 Rxb1 49. Bxb1
Kg7 50. h3 Kf6 51. Ba2 Ke5 52. Kf3 Bc5 53. Bc4 g5 $1 54. Ke2 Kf4 55. Bd3 Bd6
56. Bc2 Ke5 57. Kd3 (57. Bb3 {[%csl Re6]}) 57... Bc5 $17 58. Kc4 Be7 59. Ba4
Bf6 60. Bd7 (60. Kd3) 60... Ke4 61. Be8 d3 62. Bg6 d2 63. Bh5 g4 0-1

[Event "Metz op 31th"]
[Site "Metz"]
[Date "2013.04.24"]
[Round "4"]
[White "Jankovic, Alojzije"]
[Black "Lagarde, Maxime"]
[Result "1-0"]
[ECO "E11"]
[WhiteElo "2537"]
[BlackElo "2532"]
[Annotator "Metz Alekhine/Primel,D"]
[PlyCount "64"]
[EventDate "2013.04.20"]
[EventType "swiss"]
[EventRounds "9"]
[EventCountry "FRA"]
[SourceTitle "EXT 2016"]
[Source "ChessBase"]
[SourceDate "2015.10.08"]
[SourceVersion "1"]
[SourceVersionDate "2015.10.08"]
[SourceQuality "1"]
[TimeControl "40/5400:1800+30"]
[WhiteClock "1:30:00"]
[BlackClock "1:30:00"]

1. d4 Nf6 2. c4 e6 3. Nf3 Bb4+ 4. Bd2 a5 (4... Qe7) 5. g3 d6 6. Bg2 Nbd7 7. O-O
e5 8. Nc3 (8. e3 c6 9. Bc3 e4 10. Ne1 O-O 11. a3 Bxc3 12. Nxc3 Re8 13. f3 exf3
14. Qxf3 Nb6 15. b3 a4 16. c5 dxc5 17. dxc5 Qd2 18. Nxa4 Nxa4 19. bxa4 Qxe3+
20. Qxe3 Rxe3 21. Rf4 Rc3 22. Rd4 Be6 23. Rb4 Rxc5 24. Rxb7 h6 25. Nd3 Rc3 26.
Ne5 Rxa4 27. Nxc6 Rcxa3 28. Rxa3 Rxa3 29. Rb1 Ra2 30. Nd4 Bd7 31. Rf1 Rd2 32.
Nf3 Rd6 33. Ne5 Be6 34. Nc6 Ng4 35. Re1 Rd2 36. Ne7+ Kh8 37. Ng6+ fxg6 {
Bacrot, E (2705)-Fressinet,L (2706) Calvi 2013 1/2-1/2}) 8... exd4 (8... O-O {
Plus souple que l'abandon du centre} 9. Qc2 Re8 (9... c6)) 9. Nxd4 Ne5 (9...
O-O {la grande ligne mais le français va préférer sortir rapidement de la
théorie}) 10. b3 O-O $146 (10... c6 11. Nc2 Bc5 12. Na4 Ba7 13. Bf4 Qc7 14.
Qd2 O-O 15. Rad1 Bb8 16. Kh1 Bf5 17. Nd4 Bg6 18. Nc3 a4 19. Bg5 axb3 20. axb3
Ned7 21. e4 Re8 22. f3 h6 23. Be3 Nc5 24. Bg1 Qb6 25. Rb1 Qc7 26. Rfd1 Qe7 27.
Nf5 Bxf5 28. exf5 Bc7 29. Bd4 Rad8 30. b4 Ncd7 31. Re1 Qf8 32. f4 Bb6 33. b5
Bxd4 34. Qxd4 Nb8 35. h3 Re7 36. Rbd1 Qe8 37. Rxe7 Qxe7 38. Kh2 Qd7 39. Qa7 Qc8
40. Ne4 {Nielsen,P (2405)-Fyllingen,R (2330) Gausdal 1992 1/2-1/2 (62)}) 11.
Nd5 Nxd5 (11... Bc5 12. Bc3 c6) 12. cxd5 {[%csl Rc7]} Bc5 13. Bc3 {les Blancs
ont un petit avantage d'espace} c6 $6 {Les Noirs n'auront pas assez de
compensations pour le P perdu} (13... Re8) (13... Bd7 {[%cal Gc7c6]}) 14. dxc6
Nxc6 15. Nxc6 bxc6 16. Bxc6 Bh3 17. Bg2 Bxg2 18. Kxg2 d5 $6 {[%cal Ga8a6,Ga6h6,
Gd8d7,Gd7h3] L'idée de la poussée d6d5 pour amener la Ra6 à l'aile-roi
comme dans un gambit de Budapest mais le P isolé "d5" est faible} 19. e3 (19.
Rc1 d4) 19... Ra6 (19... a4 20. b4) 20. Bd4 (20. Rc1 {[%cal Gc1c5,Gc3g7]} Ba3
21. Qd4 $36) 20... Ba3 21. Qf3 Qd7 {[%csl Rh3][%cal Ga6h6]} 22. Rfd1 Rd8 (22...
Rh6 23. h4) 23. Rd3 $1 {[%cal Ga1d1] le Ba3 empêche le développement Rac1
mais les Blancs vont pouvoir doubler les R sur la colonne "d" et attaquer la
faiblesse "d5"} a4 24. Rad1 $36 axb3 25. axb3 Qb7 26. Be5 {Provoque un nouveau
affaiblissement} f6 27. Bf4 Rb6 28. e4 $1 $40 Kf8 29. exd5 Bd6 30. Bxd6+ Rbxd6
31. Rc3 $1 g6 (31... Rxd5 $4 32. Rc5 {[%csl Rb7]}) 32. Rc6 $1 {[%csl Rb7,Gd5]
Une belle exploitation technique de l'avantage d'espace procuré par le P
passé "d5" qui doit tomber à terme mais qui est difficile à prendre} Qe7 {
Suite illisible et gain Blanc au 43ème coup} 1-0

[Event "Rohde op 12th"]
[Site "Sautron"]
[Date "2012.10.29"]
[Round "4"]
[White "Le Roux, Jean Pierre"]
[Black "Lagarde, Maxime"]
[Result "0-1"]
[ECO "E11"]
[WhiteElo "2563"]
[BlackElo "2501"]
[Annotator "Primel,D"]
[PlyCount "88"]
[EventDate "2012.10.27"]
[EventType "swiss"]
[EventRounds "9"]
[EventCountry "FRA"]
[SourceTitle "EXT 2014"]
[Source "ChessBase"]
[SourceDate "2013.11.20"]
[SourceVersion "1"]
[SourceVersionDate "2013.11.20"]
[SourceQuality "1"]
[TimeControl "40/5400+30:1800+30"]
[WhiteClock "1:30:00"]
[BlackClock "1:30:00"]

1. Nf3 {[%emt 0:01:51]} Nf6 {[%emt 0:00:00]} 2. c4 {[%emt 0:01:10]} e6 {
[%emt 0:00:40]} 3. d4 {[%emt 0:03:16]} Bb4+ {[%emt 0:00:13]} 4. Bd2 {[%emt 0:
01:19]} a5 {[%emt 0:00:20]} (4... Qe7) (4... Be7 5. g3 d5 6. Bg2 c6 7. O-O O-O
8. Qc2 b6 9. Rd1 Nbd7 (9... Ba6 10. b3 Nbd7 11. a4 Ne4 12. Bf4 f5 13. Nc3 Bb4
14. Na2 Be7 15. h4 Bb7 16. Nc1 c5 17. Nd3 $14 {Bologan}) 10. Bf4 Bb7) 5. g3 {
[%emt 0:06:09]} (5. Nc3) 5... d6 {[%emt 0:00:05]} 6. Bg2 {[%emt 0:02:53]} Nbd7
{[%emt 0:00:29][%cal Ge6e5]} 7. O-O {[%emt 0:00:57]} e5 {[%emt 0:00:11]} 8. e3
{[%emt 0:03:30][%csl Rd2] Solide mais un peu passif} (8. Bg5 $142 exd4 9. Nxd4
$14 {[%csl Rg7][%cal Ga2a3,Gd4f5]}) 8... c6 {[%emt 0:15:31] Après une longue
réflexion, les Noirs choisissent cette ligne secondaire} (8... Bxd2 {La grande
ligne}) 9. Bc1 $5 {[%emt 0:07:55][%csl Rb4][%cal Ga2a3]} (9. a3) 9... e4 {
[%emt 0:00:27]} 10. Ng5 {[%emt 0:02:41]} (10. Nh4 $5 d5 11. a3 Be7 12. Nf5 O-O
13. cxd5 cxd5 14. f3 Re8 15. fxe4 dxe4 16. Nxe7+ (16. Nc3 Bf8 17. g4 (17. Bd2
Nb6 18. Qe2)) 16... Qxe7 17. Nc3 Nf8 18. Bd2 Bg4) 10... d5 {[%emt 0:00:06]} 11.
c5 {[%emt 0:02:13][%cal Ga2a3] Renouvellant la menace de gain du B} h6 {
[%emt 0:00:41]} 12. Nh3 {[%emt 0:01:19]} a4 $8 {[%emt 0:00:09] La théorie
considére que les Noirs ont des compensations raisonnables pour le P sacrifié}
13. a3 {[%emt 0:03:34]} Ba5 {[%emt 0:00:06]} 14. Qxa4 {[%emt 0:01:10]} Nf8 {
[%emt 0:00:28]} 15. b4 {[%emt 0:13:18][%csl Ra3][%cal Ga4a8] La position est
toujours théorique mais JP avait visiblement des difficultés а se rappeler de
la théorie et il avait déjà dépensé beaucoup de temps dans l'ouverture.} (15.
Nf4 $5 {Le sacrifice donne des bons résultats et il était peut-être temps de
chercher une alternative} Bg4 16. Qc2 Qd7) 15... Bxh3 $1 {[%emt 0:01:04]} 16.
Bxh3 {[%emt 0:00:05]} Bc7 {[%emt 0:00:06]} 17. Qd1 {[%emt 0:07:06]} h5 {
[%emt 0:01:27][%csl Gh8][%cal Gh8h3]} 18. f4 {[%emt 0:02:48]} exf3 {[%emt 0:05:
13]} 19. Qxf3 {[%emt 0:06:13]} h4 $44 {[%emt 0:11:17][%csl Gc7,Gh8][%cal Gc7h2]
Les Noirs ont un jeu facile} 20. g4 {[%emt 0:01:11]} N8h7 {[%emt 0:11:30][%cal
Gh7g5]} (20... Qe7 21. Nc3 {Pashikian,A (2639)-Stocek,J (2567) EU-Cup 26th
Plovdiv 2010 (5.4) 0-1}) (20... Ne6) 21. Nc3 $146 {[%emt 0:00:40]} (21. Qf5 g6
22. Qf2 Qd7 23. Qxh4 g5 24. Qf2 Nf8 25. Qxf6 Rxh3 26. Qf5 Rxh2 27. Rf2 Rh4 28.
Rg2 Qe7 29. Nc3 Ne6 30. Bd2 O-O-O 31. Rf1 Rdh8 32. Rf3 R8h7 33. b5 Kb8 34. b6
Bf4 35. Ne2 Ng7 {Baryshpolets,A (2487)-Romanov,E (2631)/Voronezh 2012/Mega2012
Update 26/0-1 (52)}) 21... Ng5 $132 {[%emt 0:01:55]} 22. Qg2 {[%emt 0:02:50]}
O-O $32 {[%emt 0:07:25][%csl Ra1,Ra3,Rc1]} (22... Qd7 $5 {[%csl Rg4][%cal
Gg5h3]}) 23. b5 $6 {[%emt 0:13:06][%cal Gb5b6]} (23. Rf5 $5 Nfe4 24. Nxe4 Nxe4
25. Bb2 Qe7 26. Qe2 (26. Raf1) 26... Rae8 27. Re1) 23... Ba5 {[%emt 0:02:38]}
24. Ne2 $1 {[%emt 0:03:17][%cal Ge2f4]} Nfe4 {[%emt 0:03:58]} 25. Nf4 {[%emt 0:
01:22]} cxb5 {[%emt 0:04:43]} 26. Rb1 {[%emt 0:01:06]} Qd7 $1 {[%emt 0:00:06]
[%csl Rg4,Rh3]} 27. Nd3 {[%emt 0:03:28][%cal Gd3e5]} Bc7 {[%emt 0:03:22]} 28.
Kh1 {[%emt 0:00:15] (=)} (28. Rf5) 28... g6 {[%emt 0:01:46] Sans surprise, les
Noirs déclinent l'offre} 29. Nb4 {[%emt 0:02:54]} Rfe8 {[%emt 0:00:35]} 30. Rb3
$6 {[%emt 0:03:30] La partie commence а mal tourner pour les Blancs qui ont
des pièces désorganisées} (30. Nd3) 30... Ra4 {[%emt 0:03:24]} 31. Kg1 {
[%emt 0:00:49]} Kg7 {[%emt 0:02:36]} 32. Rd3 {[%emt 0:00:47]} Ba5 {[%emt 0:01:
06]} (32... Nxh3+ $1 33. Qxh3 Ng5 34. Qg2 h3 $19) 33. Nc2 {[%emt 0:00:54]} Rc4
{[%emt 0:01:53]} 34. Na1 {[%emt 0:00:03]} Bd8 {[%emt 0:09:38]} (34... Nxh3+)
35. Nb3 {[%emt 0:00:43]} Nxh3+ {[%emt 0:01:04]} 36. Qxh3 {[%emt 0:00:03]} Ng5 {
[%emt 0:00:05]} 37. Qg2 {[%emt 0:00:03]} h3 $19 {[%emt 0:00:11]} 38. Qe2 {
[%emt 0:00:39]} Re4 {[%emt 0:00:15]} 39. Rf4 {[%emt 0:01:25]} Bc7 {[%emt 0:00:
20]} 40. Rxe4 {[%emt 0:00:00]} dxe4 {[%emt 0:00:00]} 41. Rd1 {[%emt 0:00:45]}
Nf3+ {[%emt 0:03:39]} 42. Kh1 {[%emt 0:02:44]} Rc3 {[%emt 0:03:25]} 43. Nd2 {
[%emt 0:05:57]} Qxg4 {[%emt 0:00:27]} 44. d5 {[%emt 0:01:42]} Rxe3 {[%emt 0:02:
46] Sur cette variante 8.. c6, les Noirs semblent ok actuellement} 0-1

[Event "FRA-ch 58 Championnat"]
[Site "Belfort"]
[Date "1983.08.19"]
[Round "7"]
[White "Haik, Aldo"]
[Black "Seret, Jean Luc"]
[Result "1-0"]
[ECO "E11"]
[WhiteElo "2400"]
[BlackElo "2375"]
[Annotator "Primel,D"]
[PlyCount "63"]
[EventDate "1983.08.12"]
[EventType "tourn"]
[EventRounds "15"]
[EventCountry "FRA"]
[EventCategory "2"]
[SourceTitle "EXT 2016"]
[Source "ChessBase"]
[SourceDate "2015.10.08"]
[SourceVersion "1"]
[SourceVersionDate "2015.10.08"]
[SourceQuality "1"]
[TimeControl "40/9000:16/5400:0"]

1. d4 Nf6 2. c4 e6 3. Nf3 Bb4+ 4. Bd2 c5 (4... a5) (4... Qe7 {La ligne
principale très solide mais qui et également assez passive}) 5. Bxb4 cxb4 6.
Nbd2 (6. g3) (6. e3) 6... O-O 7. g3 d6 8. Bg2 Nc6 9. O-O e5 10. d5 Ne7 $6 {
Ce N mal placé ne va quasiment plus jouer dans la partie} (10... Nb8 $142 {
[%cal Gb8d7,Gb8a6]} 11. a3 (11. Ne1 Na6 12. Nd3 Re8 13. e4 Qb6 14. Qb3 Bg4 $1 {
[%cal Gf6d7] pour permettre au second N de venir contrôler la case clé "c5"}
15. Rfe1 Nd7 16. a3 Ndc5 17. Nxc5 Qxc5 18. Qe3 b6 19. Qxc5 Nxc5 $1 20. axb4 Nd3
$15 {[%cal Gd3b4,Gd3e1]}) 11... Na6 $1 12. Ne1 Qb6 13. Nd3 Bg4 14. axb4 Nxb4
15. c5 Qb5 16. Nxb4 Qxb4 17. cxd6 Qb5 {[%csl Re2][%cal Gg4e2,Gb5e2]} 18. f3 Bd7
19. e4 Ne8 $1 $13 {[%cal Gf7f5,Ge8d6]}) (10... Nb8 11. a3 Na6 12. Ne1 Qb6 13.
Nd3 Bf5 14. e4 Bg4 15. Bf3 Bxf3 16. Qxf3 Nd7 17. Qe3 Ndc5 18. Nxc5 Nxc5 19. Nb3
Rfc8 20. Nxc5 Qxc5 21. Qxc5 Rxc5 22. b3 bxa3 23. Rxa3 a5 24. Rfa1 b6 25. b4
Rxc4 26. bxa5 Rxa5 27. Rxa5 bxa5 28. Rxa5 Kf8 29. f3 h5 30. Ra8+ Ke7 31. Ra7+ {
1/2-1/2 (31) Wang Yue (2739)-Ivanchuk,V (2779) Linares 2009}) 11. e4 (11. Ne1
$1 {[%cal Ge1d3,Rd3b4,Rc4c5]} a5 12. a3 $1) 11... Qb6 12. Qc2 Nd7 13. a3 $1 Nc5
14. axb4 Qxb4 15. Ra3 $1 Bd7 16. Rfa1 $14 a5 (16... f5 17. Bh3) 17. Ne1 Ra6 (
17... a4 $1 18. Nd3 Nxd3 19. Qxd3 b5 20. b3 (20. cxb5 Bxb5)) 18. Nb3 Rc8 (18...
Ba4 19. Rxa4 Qxb3 20. Rxa5 $16) 19. Nxc5 $1 {Echange la seule pièce Noire qui
était bien placée} Qxc5 20. Rc3 {[%csl Ra5][%cal Ge1d3,Gc4c5]} (20. Nd3 $143
Qxc4 21. Qxc4 Rxc4 22. Rxa5) 20... b6 {[%csl Rc6]} 21. Nd3 $36 {[%cal Gd3c5,
Gb2b4] Les pièces blanches sont bien placées pour préparer la poussée
thématique c4c5 alors que celles du champion de France sortant ne sont pas
coordonnées.} Qd4 $2 {[%csl Rd4] Trop risqué} (21... Qc7 $8 22. f4 exf4 23.
gxf4 $16 {[%cal Ge4e5]}) 22. Rd1 $2 (22. c5 $3 {[%cal Gc3c4] La Q noire n'a
plus de cases de sortie} b5 23. cxd6 Rxd6 24. Rxc8+ Nxc8 25. Rxa5 $18 {[%csl
Rc8][%cal Ga5a8]} h5 26. Qc3 $1 {[%csl Re5]}) 22... Ra7 $2 (22... f5 $1 23. Nb4
axb4 24. Rxd4 exd4 25. Rd3 Ra1+ 26. Bf1 (26. Rd1 Rxc4)) 23. c5 $1 Ba4 24. b3
Bb5 25. Nc1 Rac7 26. Rxd4 exd4 27. Rc4 Bxc4 28. bxc4 bxc5 29. e5 Ng6 30. exd6
Rb7 31. Nd3 Nf8 32. h4 1-0